[Event "*** Titled Tuesday Blitz"]
[Site "Chess.com"]
[Date "2021.02.02"]
[Round "9"]
[White "KarateBaby"]
[Black "OMGCovid-19"]
[Result "1/2-1/2"]
[WhiteElo "2214"]
[BlackElo "1985"]
[TimeControl "180+1"]
[EndTime "11:46:15 PST"]
[Termination "Game drawn by agreement"]

1. Nf3 {[%clk 0:03:00.9]} 1... Nf6 {[%clk 0:02:59.7]} 2. c4 {[%clk 0:03:00.6]}
2... c5 {[%clk 0:02:48.9]} 3. Nc3 {[%clk 0:02:59.6]} 3... Nc6 {[%clk 0:02:48.2]}
4. e3 {[%clk 0:03:00.1]} 4... g6 {[%clk 0:02:47.1]} 5. d4 {[%clk 0:02:51.2]}
5... cxd4 {[%clk 0:02:48]} 6. exd4 {[%clk 0:02:51.5]} 6... d5 {[%clk 0:02:45.7]}
7. cxd5 {[%clk 0:02:51.6]} 7... Nxd5 {[%clk 0:02:44.7]} 8. Bc4 {[%clk
0:02:49.7]} 8... Nxc3 {[%clk 0:02:34]} 9. bxc3 {[%clk 0:02:50.6]} 9... Bg7
{[%clk 0:02:33.7]} 10. O-O {[%clk 0:02:48.9]} 10... O-O {[%clk 0:02:33.3]} 11.
Ba3 {[%clk 0:02:42.8]} 11... Bg4 {[%clk 0:02:30.1]} 12. Re1 {[%clk 0:02:39.4]}
12... Re8 {[%clk 0:02:28.3]} 13. Rb1 {[%clk 0:02:38.4]} 13... Qd7 {[%clk
0:02:23.5]} 14. Qb3 {[%clk 0:02:31.9]} 14... Bxf3 {[%clk 0:02:09.3]} 15. Bxf7+
{[%clk 0:02:30.9]} 15... Kh8 {[%clk 0:02:09.3]} 16. gxf3 {[%clk 0:02:09.5]}
16... Rf8 {[%clk 0:01:29.4]} 17. Be6 {[%clk 0:02:07.7]} 17... Qc7 {[%clk
0:01:29.2]} 18. Qxb7 {[%clk 0:02:07.5]} 18... Qxb7 {[%clk 0:01:03.1]} 19. Rxb7
{[%clk 0:02:08.4]} 19... Nd8 {[%clk 0:00:56.5]} 20. Rxe7 {[%clk 0:02:06.7]}
20... Nxe6 {[%clk 0:00:54.8]} 21. R1xe6 {[%clk 0:01:56.8]} 21... Rfc8 {[%clk
0:00:26.9]} 22. Bc5 {[%clk 0:01:50.7]} 22... Bf8 {[%clk 0:00:24.7]} 23. Rxa7
{[%clk 0:01:41.2]} 23... Bxc5 {[%clk 0:00:23.8]} 24. Rxa8 {[%clk 0:01:41.1]}
24... Rxa8 {[%clk 0:00:22.6]} 25. dxc5 {[%clk 0:01:41.7]} 25... Rc8 {[%clk
0:00:20.5]} 26. c6 {[%clk 0:01:40.6]} 26... Kg7 {[%clk 0:00:20.6]} 27. a4 {[%clk
0:01:41.2]} 27... Kf7 {[%clk 0:00:20.9]} 28. Rd6 {[%clk 0:01:41.9]} 28... Ke7
{[%clk 0:00:21.2]} 29. Rd7+ {[%clk 0:01:40.5]} 29... Ke6 {[%clk 0:00:21.4]} 30.
Rxh7 {[%clk 0:01:40.9]} 30... Rxc6 {[%clk 0:00:21.5]} 31. Rh4 {[%clk 0:01:17.2]}
31... Rxc3 {[%clk 0:00:19.8]} 32. Kg2 {[%clk 0:01:08.2]} 32... Kf5 {[%clk
0:00:19.2]} 33. Rg4 {[%clk 0:01:04.1]} 33... g5 {[%clk 0:00:14.3]} 34. Rb4
{[%clk 0:00:55.7]} 34... Ra3 {[%clk 0:00:13.8]} 35. Rb5+ {[%clk 0:00:54.3]}
35... Kf4 {[%clk 0:00:12.8]} 36. Rb4+ {[%clk 0:00:54.9]} 36... Kf5 {[%clk
0:00:12.8]} 37. Kg3 {[%clk 0:00:55.8]} 37... Ra2 {[%clk 0:00:11.3]} 38. Rb5+
{[%clk 0:00:55.4]} 38... Kg6 {[%clk 0:00:11.1]} 39. Kg4 {[%clk 0:00:54.2]} 39...
Rxf2 {[%clk 0:00:10]} 40. Rxg5+ {[%clk 0:00:54.1]} 40... Kf6 {[%clk 0:00:10.6]}
41. Ra5 {[%clk 0:00:48.4]} 41... Rxh2 {[%clk 0:00:10]} 42. Ra6+ {[%clk
0:00:46.5]} 42... Ke5 {[%clk 0:00:09.6]} 43. f4+ {[%clk 0:00:46.7]} 43... Ke4
{[%clk 0:00:09.2]} 44. Re6+ {[%clk 0:00:45.2]} 44... Kd5 {[%clk 0:00:09.2]} 45.
Re1 {[%clk 0:00:43.6]} 45... Ra2 {[%clk 0:00:07.7]} 46. Kf5 {[%clk 0:00:42.5]}
46... Rxa4 {[%clk 0:00:07.2]} 47. Rd1+ {[%clk 0:00:42.7]} 47... Kc6 {[%clk
0:00:06.9]} 48. Kg6 {[%clk 0:00:40.6]} 48... Rxf4 {[%clk 0:00:04.7]} 1/2-1/2

[Event "*** Titled Tuesday Blitz"]
[Site "Chess.com"]
[Date "2021.02.02"]
[Round "9"]
[White "onetowin"]
[Black "Abdimalik_Abdisalimov"]
[Result "0-1"]
[WhiteElo "1997"]
[BlackElo "2288"]
[TimeControl "180+1"]
[EndTime "11:46:15 PST"]
[Termination "Abdimalik_Abdisalimov won by resignation"]

1. d4 {[%clk 0:02:55.3]} 1... Nf6 {[%clk 0:02:58.8]} 2. Nc3 {[%clk 0:02:53.7]}
2... d5 {[%clk 0:02:56.5]} 3. Bf4 {[%clk 0:02:51.8]} 3... a6 {[%clk 0:02:48.7]}
4. a4 {[%clk 0:02:46.2]} 4... c5 {[%clk 0:02:45.8]} 5. dxc5 {[%clk 0:02:42.8]}
5... e6 {[%clk 0:02:45.2]} 6. e3 {[%clk 0:02:42.3]} 6... Bxc5 {[%clk 0:02:43.8]}
7. Nf3 {[%clk 0:02:37.7]} 7... O-O {[%clk 0:02:43.8]} 8. Bd3 {[%clk 0:02:36.5]}
8... Nc6 {[%clk 0:02:43.1]} 9. Ne5 {[%clk 0:02:28.8]} 9... Bd6 {[%clk
0:02:28.4]} 10. Nxc6 {[%clk 0:02:23.7]} 10... bxc6 {[%clk 0:02:27.6]} 11. Bxd6
{[%clk 0:02:23.1]} 11... Qxd6 {[%clk 0:02:28.5]} 12. O-O {[%clk 0:02:18.7]}
12... e5 {[%clk 0:02:27.6]} 13. Be2 {[%clk 0:02:05.1]} 13... Rb8 {[%clk
0:02:26.4]} 14. b3 {[%clk 0:01:56.4]} 14... a5 {[%clk 0:02:24.9]} 15. Bf3 {[%clk
0:01:51.5]} 15... e4 {[%clk 0:02:18.3]} 16. Nxe4 {[%clk 0:01:49.3]} 16... Nxe4
{[%clk 0:02:09.3]} 17. Bxe4 {[%clk 0:01:50.2]} 17... Qe5 {[%clk 0:02:02.6]} 18.
Bd3 {[%clk 0:01:47]} 18... Be6 {[%clk 0:01:58.2]} 19. Qf3 {[%clk 0:01:43.3]}
19... c5 {[%clk 0:01:55.7]} 20. Qg3 {[%clk 0:01:42.3]} 20... Qxg3 {[%clk
0:01:53.3]} 21. hxg3 {[%clk 0:01:43.2]} 21... c4 {[%clk 0:01:53.6]} 22. bxc4
{[%clk 0:01:40.3]} 22... dxc4 {[%clk 0:01:54.5]} 23. Be4 {[%clk 0:01:36.3]}
23... Rb2 {[%clk 0:01:54]} 24. Rfb1 {[%clk 0:01:26.8]} 24... Rfb8 {[%clk
0:01:52.2]} 25. Rxb2 {[%clk 0:01:25.6]} 25... Rxb2 {[%clk 0:01:51.1]} 26. Ra3
{[%clk 0:01:25.5]} 26... f5 {[%clk 0:01:48.1]} 27. Bc6 {[%clk 0:01:22.5]} 27...
Rxc2 {[%clk 0:01:47.7]} 28. Ra1 {[%clk 0:01:16.3]} 28... c3 {[%clk 0:01:44.8]}
29. Bb5 {[%clk 0:01:03.8]} 29... Rb2 {[%clk 0:01:40.2]} 30. Rc1 {[%clk
0:01:02.1]} 30... c2 {[%clk 0:01:39.5]} 31. Bd3 {[%clk 0:00:57.3]} 31... Rb1
{[%clk 0:01:38.8]} 32. Rxb1 {[%clk 0:00:52.2]} 32... cxb1=Q+ {[%clk 0:01:36.6]}
33. Bxb1 {[%clk 0:00:53.1]} 33... g6 {[%clk 0:01:33.3]} 34. Bc2 {[%clk
0:00:52.4]} 34... Kf7 {[%clk 0:01:32.4]} 35. Kf1 {[%clk 0:00:52.3]} 35... Bd5
{[%clk 0:01:31]} 36. f3 {[%clk 0:00:50]} 36... Ke6 {[%clk 0:01:29.6]} 37. Ke2
{[%clk 0:00:49.6]} 37... Bc4+ {[%clk 0:01:26.4]} 38. Kd2 {[%clk 0:00:49.3]}
38... Bf1 {[%clk 0:01:23.6]} 39. e4 {[%clk 0:00:42.6]} 39... fxe4 {[%clk
0:01:20.1]} 40. Bxe4 {[%clk 0:00:36.9]} 40... Bxg2 {[%clk 0:01:19.5]} 41. Kc3
{[%clk 0:00:35.9]} 41... Kd6 {[%clk 0:01:07.2]} 42. Kc4 {[%clk 0:00:31.6]} 42...
Bf1+ {[%clk 0:01:06.7]} 43. Kd4 {[%clk 0:00:29.6]} 43... Be2 {[%clk 0:01:00.4]}
44. f4 {[%clk 0:00:29.6]} 44... Bd1 {[%clk 0:00:57.5]} 45. f5 {[%clk 0:00:23.9]}
45... gxf5 {[%clk 0:00:57.1]} 46. Bxf5 {[%clk 0:00:23.5]} 46... h6 {[%clk
0:00:57.2]} 47. Bd3 {[%clk 0:00:19.7]} 47... Bxa4 {[%clk 0:00:57.3]} 48. Ke4
{[%clk 0:00:20]} 48... Bd7 {[%clk 0:00:52.2]} 49. Kf4 {[%clk 0:00:20.1]} 49...
a4 {[%clk 0:00:50.2]} 50. g4 {[%clk 0:00:18.7]} 50... a3 {[%clk 0:00:49.9]} 51.
Bc4 {[%clk 0:00:18.1]} 51... Be6 {[%clk 0:00:48]} 52. Bxe6 {[%clk 0:00:15.8]}
52... Kxe6 {[%clk 0:00:48.9]} 53. g5 {[%clk 0:00:15.1]} 53... hxg5+ {[%clk
0:00:49.8]} 54. Kxg5 {[%clk 0:00:15.5]} 54... a2 {[%clk 0:00:50]} 0-1

[Event "*** Titled Tuesday Blitz"]
[Site "Chess.com"]
[Date "2021.02.02"]
[Round "9"]
[White "TigrVShlyape"]
[Black "GelmanAlexander"]
[Result "1-0"]
[WhiteElo "2833"]
[BlackElo "2582"]
[TimeControl "180+1"]
[EndTime "11:46:20 PST"]
[Termination "TigrVShlyape won by resignation"]

1. e4 {[%clk 0:03:00.9]} 1... c5 {[%clk 0:02:59]} 2. Nc3 {[%clk 0:02:59.1]} 2...
e6 {[%clk 0:02:59.1]} 3. Nf3 {[%clk 0:02:57.7]} 3... a6 {[%clk 0:02:58.9]} 4. d4
{[%clk 0:02:56.3]} 4... cxd4 {[%clk 0:02:59.2]} 5. Nxd4 {[%clk 0:02:56.9]} 5...
d6 {[%clk 0:02:59.7]} 6. Qd3 {[%clk 0:02:49.6]} 6... Nf6 {[%clk 0:02:56.1]} 7.
Qg3 {[%clk 0:02:49]} 7... b5 {[%clk 0:02:54.6]} 8. a3 {[%clk 0:02:47.3]} 8...
Bb7 {[%clk 0:02:53.2]} 9. Bd3 {[%clk 0:02:43.5]} 9... Nbd7 {[%clk 0:02:52.4]}
10. O-O {[%clk 0:02:38.5]} 10... Rc8 {[%clk 0:02:51.9]} 11. Bd2 {[%clk
0:02:35.6]} 11... h5 {[%clk 0:02:46.9]} 12. Bg5 {[%clk 0:02:27.6]} 12... Be7
{[%clk 0:02:40.5]} 13. h4 {[%clk 0:02:22.1]} 13... Qb6 {[%clk 0:02:34.2]} 14.
Nb3 {[%clk 0:02:17.9]} 14... Ne5 {[%clk 0:02:28.3]} 15. Kh1 {[%clk 0:02:15]}
15... Nfg4 {[%clk 0:02:17.8]} 16. Bxe7 {[%clk 0:02:11.5]} 16... Kxe7 {[%clk
0:02:18.7]} 17. Rae1 {[%clk 0:01:59]} 17... g5 {[%clk 0:01:36.9]} 18. f3 {[%clk
0:01:56.1]} 18... gxh4 {[%clk 0:01:27.9]} 19. Qxh4+ {[%clk 0:01:54.7]} 19... f6
{[%clk 0:01:21.6]} 20. Nd1 {[%clk 0:01:23.4]} 20... Rcg8 {[%clk 0:01:03.6]} 21.
Re2 {[%clk 0:01:13.4]} 21... Ng6 {[%clk 0:01:00.6]} 22. Qg3 {[%clk 0:01:09.9]}
22... h4 {[%clk 0:00:47]} 23. Qxg4 {[%clk 0:00:55.4]} 23... h3 {[%clk
0:00:45.6]} 24. g3 {[%clk 0:00:53.8]} 24... e5 {[%clk 0:00:28.2]} 25. Ne3 {[%clk
0:00:41.8]} 25... Nf4 {[%clk 0:00:27.9]} 26. gxf4 {[%clk 0:00:29.4]} 26... Rxg4
{[%clk 0:00:26.8]} 27. fxg4 {[%clk 0:00:29.6]} 27... h2 {[%clk 0:00:22.7]} 28.
fxe5 {[%clk 0:00:27.9]} 28... dxe5 {[%clk 0:00:22.4]} 29. Nd2 {[%clk 0:00:25]}
29... Rh3 {[%clk 0:00:21.6]} 30. Rf3 {[%clk 0:00:23.2]} 30... Rxf3 {[%clk
0:00:17.9]} 31. Nxf3 {[%clk 0:00:22.8]} 31... b4 {[%clk 0:00:15.9]} 32. axb4
{[%clk 0:00:21.2]} 32... Qxb4 {[%clk 0:00:16]} 33. b3 {[%clk 0:00:21.2]} 33...
Qc3 {[%clk 0:00:14.2]} 34. Kxh2 {[%clk 0:00:20.4]} 34... Qa1 {[%clk 0:00:13.3]}
35. Kg3 {[%clk 0:00:20.5]} 35... Qh1 {[%clk 0:00:12.7]} 36. Rh2 {[%clk
0:00:19.7]} 36... Qc1 {[%clk 0:00:11.1]} 37. Rh7+ {[%clk 0:00:19.5]} 37... Kf8
{[%clk 0:00:09.5]} 38. Kf2 {[%clk 0:00:19.3]} 38... Bc6 {[%clk 0:00:08.7]} 39.
Rh6 {[%clk 0:00:18.9]} 39... Kg7 {[%clk 0:00:07.7]} 40. g5 {[%clk 0:00:19.4]}
40... fxg5 {[%clk 0:00:07.3]} 41. Rxc6 {[%clk 0:00:19.2]} 41... g4 {[%clk
0:00:07.5]} 42. Nxg4 {[%clk 0:00:19.5]} 42... Kf7 {[%clk 0:00:05.9]} 43. Ngxe5+
{[%clk 0:00:19.5]} 1-0

[Event "*** Titled Tuesday Blitz"]
[Site "Chess.com"]
[Date "2021.02.02"]
[Round "9"]
[White "K_A_S_T_O_R"]
[Black "TST2014"]
[Result "1-0"]
[WhiteElo "2734"]
[BlackElo "2550"]
[TimeControl "180+1"]
[EndTime "11:46:22 PST"]
[Termination "K_A_S_T_O_R won by resignation"]

1. e4 {[%clk 0:03:00.9]} 1... c5 {[%clk 0:02:59.5]} 2. Nf3 {[%clk 0:03:00.3]}
2... Nc6 {[%clk 0:02:59.8]} 3. Bb5 {[%clk 0:02:55.5]} 3... g6 {[%clk 0:02:59.4]}
4. c3 {[%clk 0:02:54.9]} 4... Nf6 {[%clk 0:02:58.2]} 5. Qe2 {[%clk 0:02:54.8]}
5... Bg7 {[%clk 0:02:56.6]} 6. O-O {[%clk 0:02:55.2]} 6... O-O {[%clk
0:02:56.2]} 7. Rd1 {[%clk 0:02:51.9]} 7... a6 {[%clk 0:02:51.1]} 8. Bxc6 {[%clk
0:02:47.6]} 8... dxc6 {[%clk 0:02:52]} 9. h3 {[%clk 0:02:45.3]} 9... e5 {[%clk
0:02:49.9]} 10. Nxe5 {[%clk 0:02:36.4]} 10... Re8 {[%clk 0:02:46.6]} 11. d4
{[%clk 0:02:35.5]} 11... cxd4 {[%clk 0:02:45.1]} 12. cxd4 {[%clk 0:02:35.2]}
12... c5 {[%clk 0:02:37.4]} 13. dxc5 {[%clk 0:02:09.5]} 13... Qc7 {[%clk
0:02:30.7]} 14. Nc4 {[%clk 0:02:04.7]} 14... Nxe4 {[%clk 0:02:22.1]} 15. Nb6
{[%clk 0:01:48.6]} 15... Rb8 {[%clk 0:02:12.1]} 16. Be3 {[%clk 0:01:44.7]} 16...
Bf5 {[%clk 0:02:10.9]} 17. Nd5 {[%clk 0:01:28.7]} 17... Qe5 {[%clk 0:02:06.9]}
18. Nbc3 {[%clk 0:01:26.3]} 18... Nxc3 {[%clk 0:02:00.8]} 19. Nxc3 {[%clk
0:01:23.6]} 19... h5 {[%clk 0:01:50.6]} 20. Qf3 {[%clk 0:01:20.3]} 20... Be4
{[%clk 0:01:37.1]} 21. Nxe4 {[%clk 0:01:18.1]} 21... Qxe4 {[%clk 0:01:38]} 22.
Qxe4 {[%clk 0:01:18.2]} 22... Rxe4 {[%clk 0:01:37.9]} 23. Rab1 {[%clk
0:01:18.6]} 23... Rb4 {[%clk 0:01:31.1]} 24. b3 {[%clk 0:01:18]} 24... Bf8
{[%clk 0:01:27.6]} 25. Rbc1 {[%clk 0:01:16.2]} 25... Re4 {[%clk 0:01:20.1]} 26.
Rd7 {[%clk 0:01:14.4]} 26... Re7 {[%clk 0:01:19.6]} 27. Rcd1 {[%clk 0:01:09.4]}
27... Rxe3 {[%clk 0:01:05.5]} 28. fxe3 {[%clk 0:01:07.3]} 28... Bxc5 {[%clk
0:01:06.1]} 29. Rd8+ {[%clk 0:01:07.6]} 29... Rxd8 {[%clk 0:01:04.9]} 30. Rxd8+
{[%clk 0:01:08.5]} 30... Kg7 {[%clk 0:01:05.8]} 31. Kf2 {[%clk 0:01:08.2]} 31...
a5 {[%clk 0:01:05.9]} 32. Rd7 {[%clk 0:01:06.4]} 32... b6 {[%clk 0:01:05.8]} 33.
Kf3 {[%clk 0:01:06.9]} 33... Kf6 {[%clk 0:01:05.5]} 34. Ke4 {[%clk 0:01:03.4]}
34... Ke6 {[%clk 0:01:05.5]} 35. Rd8 {[%clk 0:01:00.1]} 35... f5+ {[%clk
0:01:03.7]} 36. Kd3 {[%clk 0:00:57.5]} 36... g5 {[%clk 0:00:59.6]} 37. Rh8
{[%clk 0:00:53.2]} 37... h4 {[%clk 0:00:59]} 38. Rh6+ {[%clk 0:00:53.1]} 38...
Ke5 {[%clk 0:00:59]} 39. Rg6 {[%clk 0:00:53.1]} 39... g4 {[%clk 0:00:15.8]} 40.
hxg4 {[%clk 0:00:51.2]} 40... fxg4 {[%clk 0:00:16]} 41. Rg5+ {[%clk 0:00:48]}
41... Kf6 {[%clk 0:00:15.3]} 42. Rxg4 {[%clk 0:00:48.4]} 42... h3 {[%clk
0:00:13.4]} 43. gxh3 {[%clk 0:00:47.8]} 43... Kf5 {[%clk 0:00:14.3]} 44. e4+
{[%clk 0:00:46.4]} 44... Ke5 {[%clk 0:00:14.4]} 45. Rg5+ {[%clk 0:00:46.6]}
45... Kf4 {[%clk 0:00:14.9]} 46. Rxc5 {[%clk 0:00:47.5]} 46... bxc5 {[%clk
0:00:15.1]} 47. h4 {[%clk 0:00:47.1]} 47... a4 {[%clk 0:00:15.6]} 48. bxa4
{[%clk 0:00:45.9]} 48... c4+ {[%clk 0:00:16.5]} 49. Kxc4 {[%clk 0:00:46.2]}
49... Kxe4 {[%clk 0:00:17.4]} 50. h5 {[%clk 0:00:46.1]} 50... Kf5 {[%clk
0:00:18]} 51. a5 {[%clk 0:00:46.6]} 51... Kg5 {[%clk 0:00:18.8]} 52. a6 {[%clk
0:00:47.5]} 52... Kxh5 {[%clk 0:00:19.7]} 53. a7 {[%clk 0:00:47.1]} 53... Kg6
{[%clk 0:00:20.6]} 54. a8=Q {[%clk 0:00:47.5]} 54... Kf5 {[%clk 0:00:21.5]} 55.
Qd5+ {[%clk 0:00:47.1]} 55... Kf4 {[%clk 0:00:21.6]} 56. a4 {[%clk 0:00:48]}
56... Ke3 {[%clk 0:00:22.5]} 57. a5 {[%clk 0:00:48.7]} 57... Ke2 {[%clk
0:00:23.4]} 58. a6 {[%clk 0:00:49.5]} 58... Ke1 {[%clk 0:00:24.3]} 59. a7 {[%clk
0:00:50.2]} 59... Kf2 {[%clk 0:00:25.2]} 60. a8=Q {[%clk 0:00:50.8]} 60... Kg3
{[%clk 0:00:26.1]} 61. Qac6 {[%clk 0:00:51]} 61... Kh4 {[%clk 0:00:25.9]} 62.
Qg6 {[%clk 0:00:46.4]} 1-0

[Event "*** Titled Tuesday Blitz"]
[Site "Chess.com"]
[Date "2021.02.02"]
[Round "9"]
[White "CzechmVIII"]
[Black "rynos0411"]
[Result "0-1"]
[WhiteElo "2270"]
[BlackElo "2396"]
[TimeControl "180+1"]
[EndTime "11:46:23 PST"]
[Termination "rynos0411 won on time"]

1. e4 {[%clk 0:03:00.9]} 1... c5 {[%clk 0:02:57.3]} 2. Nf3 {[%clk 0:03:00]} 2...
d6 {[%clk 0:02:55.8]} 3. d4 {[%clk 0:02:59.7]} 3... cxd4 {[%clk 0:02:56.7]} 4.
Nxd4 {[%clk 0:03:00.1]} 4... Nf6 {[%clk 0:02:57.1]} 5. Nc3 {[%clk 0:03:00.6]}
5... a6 {[%clk 0:02:54.8]} 6. Bg5 {[%clk 0:03:00.4]} 6... e6 {[%clk 0:02:53.2]}
7. f4 {[%clk 0:03:00.4]} 7... Nbd7 {[%clk 0:02:53.2]} 8. Qf3 {[%clk 0:02:56.6]}
8... Qc7 {[%clk 0:02:52.9]} 9. g4 {[%clk 0:02:51.1]} 9... Be7 {[%clk 0:02:50.9]}
10. O-O-O {[%clk 0:02:48.1]} 10... b5 {[%clk 0:02:39.8]} 11. Bxf6 {[%clk
0:02:47.7]} 11... Bxf6 {[%clk 0:02:34.9]} 12. g5 {[%clk 0:02:44.8]} 12... Be7
{[%clk 0:02:32.4]} 13. a3 {[%clk 0:02:38.5]} 13... Bb7 {[%clk 0:02:30.4]} 14.
Bh3 {[%clk 0:02:32.6]} 14... Rc8 {[%clk 0:02:19]} 15. Bxe6 {[%clk 0:02:27]}
15... fxe6 {[%clk 0:01:58.3]} 16. Nxe6 {[%clk 0:02:26.8]} 16... Qc4 {[%clk
0:01:59.2]} 17. Nxg7+ {[%clk 0:02:23.1]} 17... Kd8 {[%clk 0:01:59.2]} 18. Nf5
{[%clk 0:01:56.6]} 18... Rf8 {[%clk 0:01:53.2]} 19. Nxd6 {[%clk 0:01:43]} 19...
Bxd6 {[%clk 0:01:43.3]} 20. Rxd6 {[%clk 0:01:43]} 20... Ke7 {[%clk 0:01:41.8]}
21. Rhd1 {[%clk 0:01:23.3]} 21... Rc7 {[%clk 0:01:27.1]} 22. Qh3 {[%clk
0:01:05.9]} 22... Nc5 {[%clk 0:00:55.5]} 23. Qxh7+ {[%clk 0:00:36.7]} 23... Qf7
{[%clk 0:00:40]} 24. Qh4 {[%clk 0:00:34]} 24... Qxf4+ {[%clk 0:00:38.4]} 25.
Qxf4 {[%clk 0:00:30.4]} 25... Rxf4 {[%clk 0:00:39.3]} 26. Rh6 {[%clk 0:00:12.6]}
26... Nxe4 {[%clk 0:00:09.1]} 27. Nd5+ {[%clk 0:00:08.1]} 27... Bxd5 {[%clk
0:00:08.9]} 28. Rxd5 {[%clk 0:00:08.9]} 28... Rf1+ {[%clk 0:00:09.1]} 29. Rd1
{[%clk 0:00:07.5]} 29... Rxd1+ {[%clk 0:00:09.5]} 30. Kxd1 {[%clk 0:00:07.9]}
30... Nxg5 {[%clk 0:00:10.3]} 31. Rg6 {[%clk 0:00:07.2]} 31... Nf7 {[%clk
0:00:10]} 32. h4 {[%clk 0:00:05.6]} 32... Rc5 {[%clk 0:00:09.7]} 33. Rg4 {[%clk
0:00:03.9]} 33... a5 {[%clk 0:00:06.8]} 34. Re4+ {[%clk 0:00:03.8]} 34... Kd6
{[%clk 0:00:06.8]} 35. b4 {[%clk 0:00:03.7]} 35... axb4 {[%clk 0:00:06.7]} 36.
axb4 {[%clk 0:00:04.1]} 36... Rh5 {[%clk 0:00:06.8]} 37. Rg4 {[%clk 0:00:03.7]}
37... Ne5 {[%clk 0:00:06.9]} 38. Rf4 {[%clk 0:00:01.9]} 38... Nc4 {[%clk
0:00:06.8]} 39. Rd4+ {[%clk 0:00:02]} 39... Kc6 {[%clk 0:00:06.8]} 40. Rg4
{[%clk 0:00:02.6]} 40... Ne3+ {[%clk 0:00:06.8]} 41. Ke2 {[%clk 0:00:01.2]}
41... Nxg4 {[%clk 0:00:07.7]} 0-1

[Event "*** Titled Tuesday Blitz"]
[Site "Chess.com"]
[Date "2021.02.02"]
[Round "9"]
[White "leoduarte"]
[Black "Firstov"]
[Result "1-0"]
[WhiteElo "2376"]
[BlackElo "2461"]
[TimeControl "180+1"]
[EndTime "11:46:25 PST"]
[Termination "leoduarte won by checkmate"]

1. e4 {[%clk 0:03:00.9]} 1... b6 {[%clk 0:03:00.9]} 2. d4 {[%clk 0:02:58.8]}
2... Bb7 {[%clk 0:03:01.5]} 3. Nc3 {[%clk 0:02:58.9]} 3... e6 {[%clk 0:03:02.1]}
4. Bd3 {[%clk 0:02:57.9]} 4... Bb4 {[%clk 0:03:01.3]} 5. Ne2 {[%clk 0:02:53]}
5... Ne7 {[%clk 0:03:00.9]} 6. O-O {[%clk 0:02:50.4]} 6... d5 {[%clk 0:02:57.6]}
7. e5 {[%clk 0:02:42.6]} 7... Bxc3 {[%clk 0:02:48]} 8. bxc3 {[%clk 0:02:34.3]}
8... Ba6 {[%clk 0:02:45.8]} 9. a4 {[%clk 0:02:32.8]} 9... Bxd3 {[%clk
0:02:43.6]} 10. cxd3 {[%clk 0:02:32.5]} 10... Nbc6 {[%clk 0:02:38.5]} 11. Ba3
{[%clk 0:02:24.2]} 11... Nf5 {[%clk 0:02:36]} 12. Ng3 {[%clk 0:02:23.6]} 12...
Qd7 {[%clk 0:02:25.6]} 13. Qg4 {[%clk 0:02:13.8]} 13... g6 {[%clk 0:02:19.5]}
14. Nxf5 {[%clk 0:02:05.3]} 14... exf5 {[%clk 0:02:18.8]} 15. Qg5 {[%clk
0:01:57.5]} 15... Qe6 {[%clk 0:02:10.4]} 16. Rfe1 {[%clk 0:01:57.1]} 16... h6
{[%clk 0:02:01.4]} 17. Qd2 {[%clk 0:01:56.7]} 17... O-O-O {[%clk 0:01:49.2]} 18.
a5 {[%clk 0:01:55.3]} 18... Nxa5 {[%clk 0:01:47.2]} 19. Qb2 {[%clk 0:01:38.3]}
19... Kb7 {[%clk 0:01:18.6]} 20. Reb1 {[%clk 0:01:31]} 20... Nc6 {[%clk
0:01:09.4]} 21. Qb5 {[%clk 0:01:23.4]} 21... a6 {[%clk 0:01:06.9]} 22. Qa4
{[%clk 0:01:20.3]} 22... Ra8 {[%clk 0:01:06.1]} 23. Bc5 {[%clk 0:01:13.9]} 23...
Rhb8 {[%clk 0:01:05]} 24. c4 {[%clk 0:01:07.4]} 24... Kc8 {[%clk 0:01:01]} 25.
Qa2 {[%clk 0:00:30.8]} 25... dxc4 {[%clk 0:00:32.4]} 26. dxc4 {[%clk 0:00:19]}
26... Na5 {[%clk 0:00:24]} 27. d5 {[%clk 0:00:08.4]} 27... Qxe5 {[%clk
0:00:22.7]} 28. Bb4 {[%clk 0:00:08.2]} 28... Nb7 {[%clk 0:00:21.4]} 29. Re1
{[%clk 0:00:07.8]} 29... Qf6 {[%clk 0:00:17.2]} 30. Rab1 {[%clk 0:00:05]} 30...
Nd6 {[%clk 0:00:14.8]} 31. Qb3 {[%clk 0:00:03.9]} 31... Kd7 {[%clk 0:00:12.4]}
32. Bc3 {[%clk 0:00:03.2]} 32... b5 {[%clk 0:00:12.1]} 33. Bxf6 {[%clk
0:00:02.9]} 33... bxc4 {[%clk 0:00:11.5]} 34. Qa4+ {[%clk 0:00:02.9]} 34... Rb5
{[%clk 0:00:10.2]} 35. Rxb5 {[%clk 0:00:02.2]} 35... Nxb5 {[%clk 0:00:10.3]} 36.
Qxc4 {[%clk 0:00:02.2]} 36... Rb8 {[%clk 0:00:10.2]} 37. Qc6+ {[%clk 0:00:02.7]}
37... Kc8 {[%clk 0:00:09.6]} 38. Re8# {[%clk 0:00:03.6]} 1-0